[Event "Božićni turnir u VaraždinskimToplicama 26.12.2025."]
[Site "Varazdinske Toplice, Croatia"]
[Date "2025.12.26"]
[Round "9.3"]
[White "Segovic, Goran"]
[Black "Zelenika, Zoran"]
[Result "1-0"]
[TimeControl "10"]
[WhiteFideId "14508842"]
[BlackFideId "14534452"]
[WhiteElo "2324"]
[BlackElo "2031"]

1. e4 {[%clk 00:10:00]} {[%emt 00:19:21]} c5 {[%clk 00:09:59]} 2. Nf3 {[%clk
00:09:59]} {[%emt 00:00:02]} e6 {[%clk 00:09:59]} 3. d4 {[%clk 00:09:57]}
{[%emt 00:00:01]} cxd4 {[%clk 00:09:57]} {[%emt 00:00:02]} 4. Nxd4 {[%clk
00:09:57]} a6 {[%clk 00:09:57]} 5. Nc3 {[%clk 00:09:54]} {[%emt 00:00:03]} Qc7
{[%clk 00:09:56]} 6. Be3 {[%clk 00:09:37]} {[%emt 00:00:18]} Bb4 {[%clk
00:09:55]} {[%emt 00:00:01]} 7. Nde2 {[%clk 00:09:22]} {[%emt 00:00:14]} Nf6
{[%clk 00:09:53]} {[%emt 00:00:02]} 8. a3 {[%clk 00:09:05]} {[%emt 00:00:18]}
Bc5 {[%clk 00:09:49]} {[%emt 00:00:03]} 9. Qd2 {[%clk 00:08:58]} {[%emt
00:00:07]} Bxe3 {[%clk 00:09:30]} {[%emt 00:00:20]} 10. Qxe3 {[%clk 00:08:56]}
{[%emt 00:00:01]} Nc6 {[%clk 00:09:28]} {[%emt 00:00:01]} 11. f4 {[%clk
00:08:43]} {[%emt 00:00:14]} d6 {[%clk 00:09:23]} {[%emt 00:00:05]} 12. O-O-O
{[%clk 00:08:37]} {[%emt 00:00:07]} O-O {[%clk 00:09:03]} {[%emt 00:00:20]} 13.
h3 {[%clk 00:08:32]} {[%emt 00:00:04]} b5 {[%clk 00:09:01]} {[%emt 00:00:02]}
14. g4 {[%clk 00:08:25]} {[%emt 00:00:07]} b4 {[%clk 00:08:59]} {[%emt
00:00:02]} 15. axb4 {[%clk 00:08:23]} {[%emt 00:00:03]} Nxb4 {[%clk 00:08:58]}
{[%emt 00:00:01]} 16. g5 {[%clk 00:07:46]} {[%emt 00:00:37]} Ne8 {[%clk
00:08:56]} {[%emt 00:00:01]} 17. Bg2 {[%clk 00:07:37]} {[%emt 00:00:09]} Bb7
{[%clk 00:08:52]} {[%emt 00:00:05]} 18. Nd4 {[%emt 00:00:23]} Qa5 {[%clk
00:08:42]} 19. Nb3 {[%clk 00:07:17]} {[%emt 00:00:06]} Na2+ {[%clk 00:08:17]}
{[%emt 00:00:25]} 20. Kd2 {[%clk 00:06:41]} {[%emt 00:00:37]} Qb4 {[%clk
00:08:14]} {[%emt 00:00:02]} 21. Qd4 {[%clk 00:06:33]} {[%emt 00:00:09]} Qxd4+
{[%clk 00:08:11]} {[%emt 00:00:03]} 22. Nxd4 {[%clk 00:06:31]} {[%emt
00:00:01]} Nxc3 {[%clk 00:08:09]} {[%emt 00:00:02]} 23. Kxc3 {[%clk 00:06:25]}
{[%emt 00:00:07]} g6 {[%clk 00:08:00]} {[%emt 00:00:08]} 24. Kd2 {[%clk
00:06:12]} {[%emt 00:00:13]} e5 {[%clk 00:07:52]} {[%emt 00:00:08]} 25. Ne2
{[%clk 00:05:51]} {[%emt 00:00:21]} exf4 {[%clk 00:07:40]} {[%emt 00:00:12]} 26.
Nxf4 {[%clk 00:05:49]} {[%emt 00:00:02]} Ng7 {[%clk 00:07:33]} {[%emt
00:00:07]} 27. h4 {[%clk 00:05:33]} {[%emt 00:00:17]} Rfe8 {[%clk 00:07:23]}
{[%emt 00:00:09]} 28. Rhe1 {[%clk 00:05:27]} {[%emt 00:00:06]} Ne6 {[%clk
00:06:48]} {[%emt 00:00:35]} 29. Nd5 {[%clk 00:05:02]} {[%emt 00:00:25]} Bxd5
{[%clk 00:06:38]} {[%emt 00:00:10]} 30. exd5 {[%clk 00:05:02]} {[%emt
00:00:01]} Nf4 {[%clk 00:06:37]} 31. Bf3 {[%clk 00:05:00]} {[%emt 00:00:02]}
Kg7 {[%clk 00:05:21]} {[%emt 00:01:17]} 32. c4 {[%clk 00:04:59]} h6 {[%clk
00:05:15]} {[%emt 00:00:06]} 33. gxh6+ {[%clk 00:04:43]} {[%emt 00:00:15]} Kxh6
{[%clk 00:05:14]} {[%emt 00:00:01]} 34. b4 {[%clk 00:04:36]} {[%emt 00:00:07]}
a5 {[%clk 00:04:09]} {[%emt 00:01:06]} 35. Rxe8 {[%clk 00:04:09]} {[%emt
00:00:27]} Rxe8 {[%clk 00:04:08]} 36. bxa5 {[%clk 00:04:08]} {[%emt 00:00:01]}
Ra8 {[%clk 00:04:07]} 37. Ra1 {[%clk 00:04:05]} {[%emt 00:00:04]} g5 {[%clk
00:04:05]} {[%emt 00:00:02]} 38. hxg5+ {[%clk 00:04:02]} {[%emt 00:00:04]} Kxg5
{[%clk 00:04:04]} 39. Kc3 {[%clk 00:03:47]} {[%emt 00:00:14]} Ng6 {[%clk
00:03:58]} {[%emt 00:00:06]} 40. a6 {[%clk 00:03:35]} {[%emt 00:00:12]} Ra7
{[%clk 00:03:57]} {[%emt 00:00:02]} 41. Kb4 {[%clk 00:03:25]} {[%emt 00:00:10]}
Ne5 {[%clk 00:03:55]} {[%emt 00:00:02]} 42. Be2 {[%clk 00:03:19]} {[%emt
00:00:06]} f5 {[%clk 00:03:53]} {[%emt 00:00:01]} 43. Kb5 {[%clk 00:03:17]}
{[%emt 00:00:02]} Nd7 {[%clk 00:03:52]} {[%emt 00:00:01]} 44. Kc6 {[%clk
00:03:15]} {[%emt 00:00:02]} Nc5 {[%clk 00:03:36]} {[%emt 00:00:17]} 45. Kxd6
{[%clk 00:03:04]} {[%emt 00:00:11]} Nb3 {[%clk 00:03:25]} {[%emt 00:00:11]} 46.
Ra3 {[%clk 00:02:51]} {[%emt 00:00:13]} Nd4 {[%clk 00:03:24]} {[%emt 00:00:01]}
47. Bd1 {[%clk 00:02:46]} {[%emt 00:00:04]} f4 {[%clk 00:03:23]} {[%emt
00:00:01]} 48. Kc5 {[%clk 00:02:28]} {[%emt 00:00:18]} Nf5 {[%clk 00:03:14]}
{[%emt 00:00:09]} 49. Kb6 {[%clk 00:02:21]} {[%emt 00:00:07]} Ra8 {[%clk
00:03:13]} 50. c5 {[%clk 00:02:16]} {[%emt 00:00:05]} Ng3 {[%emt 00:00:09]} 1-0

[Event "Božićni turnir u VaraždinskimToplicama 26.12.2025."]
[Site "Varazdinske Toplice, Croatia"]
[Date "2025.12.26"]
[Round "9.4"]
[White "Mravunac, Damir"]
[Black "Bedekovic, Jakov"]
[Result "0-1"]
[TimeControl "10"]
[WhiteFideId "14502810"]
[BlackFideId "14596458"]
[WhiteElo "2044"]
[BlackElo "1965"]

1. f4 {[%clk 00:10:00]} {[%emt 00:04:03]} d5 {[%clk 00:09:58]} {[%emt
00:00:04]} 2. b3 {[%clk 00:09:58]} {[%emt 00:00:01]} Nf6 {[%clk 00:09:56]}
{[%emt 00:00:02]} 3. Nf3 {[%clk 00:09:56]} {[%emt 00:00:02]} c5 {[%clk
00:09:54]} 4. e3 {[%clk 00:09:55]} {[%emt 00:00:02]} Bg4 {[%clk 00:09:51]}
{[%emt 00:00:03]} 5. Bb5+ {[%clk 00:09:53]} {[%emt 00:00:02]} Nc6 {[%clk
00:09:44]} {[%emt 00:00:07]} 6. Bb2 {[%clk 00:09:50]} {[%emt 00:00:03]} e6
{[%clk 00:09:35]} {[%emt 00:00:09]} 7. O-O {[%clk 00:09:48]} {[%emt 00:00:02]}
Be7 {[%clk 00:09:30]} {[%emt 00:00:04]} 8. d3 {[%clk 00:09:47]} {[%emt
00:00:02]} O-O {[%clk 00:09:27]} {[%emt 00:00:03]} 9. Bxc6 {[%clk 00:09:40]}
{[%emt 00:00:06]} bxc6 {[%clk 00:09:26]} {[%emt 00:00:01]} 10. Nbd2 {[%clk
00:09:38]} {[%emt 00:00:02]} Qb6 {[%clk 00:08:56]} {[%emt 00:00:31]} 11. Qe1
{[%clk 00:09:31]} {[%emt 00:00:07]} Bxf3 {[%clk 00:08:53]} {[%emt 00:00:03]} 12.
Nxf3 {[%clk 00:09:29]} {[%emt 00:00:02]} c4 {[%clk 00:08:35]} {[%emt 00:00:18]}
13. Bd4 {[%clk 00:09:18]} {[%emt 00:00:11]} c5 {[%clk 00:08:31]} {[%emt
00:00:04]} 14. Bb2 {[%clk 00:08:42]} {[%emt 00:00:35]} cxd3 {[%clk 00:08:29]}
{[%emt 00:00:03]} 15. cxd3 {[%clk 00:08:41]} {[%emt 00:00:01]} a5 {[%clk
00:08:17]} {[%emt 00:00:12]} 16. Ne5 {[%clk 00:08:25]} {[%emt 00:00:15]} a4
{[%clk 00:08:12]} {[%emt 00:00:06]} 17. Rb1 {[%clk 00:08:14]} {[%emt 00:00:11]}
axb3 {[%clk 00:08:00]} {[%emt 00:00:12]} 18. axb3 {[%clk 00:08:12]} {[%emt
00:00:02]} Rfb8 {[%clk 00:07:50]} {[%emt 00:00:10]} 19. Qg3 {[%clk 00:07:49]}
{[%emt 00:00:22]} Qc7 {[%clk 00:06:56]} {[%emt 00:00:54]} 20. Ng4 {[%clk
00:07:23]} {[%emt 00:00:27]} Qd8 {[%clk 00:06:28]} {[%emt 00:00:28]} 21. Ne5
{[%clk 00:07:06]} {[%emt 00:00:17]} Rb6 {[%clk 00:06:12]} {[%emt 00:00:14]} 22.
f5 {[%clk 00:06:45]} {[%emt 00:00:23]} Rab8 {[%clk 00:05:45]} {[%emt 00:00:27]}
23. fxe6 {[%clk 00:06:17]} {[%emt 00:00:28]} Rxe6 {[%clk 00:05:42]} {[%emt
00:00:03]} 24. Ng4 {[%clk 00:06:06]} {[%emt 00:00:11]} Nxg4 {[%clk 00:05:33]}
{[%emt 00:00:09]} 25. Qxg4 {[%clk 00:06:04]} {[%emt 00:00:02]} Bf6 {[%clk
00:05:29]} {[%emt 00:00:03]} 26. Bxf6 {[%clk 00:05:34]} {[%emt 00:00:30]} Rxf6
{[%clk 00:05:28]} {[%emt 00:00:02]} 27. Rxf6 {[%clk 00:04:55]} {[%emt
00:00:39]} Qxf6 {[%clk 00:05:27]} {[%emt 00:00:01]} 28. d4 {[%clk 00:04:00]}
{[%emt 00:00:55]} c4 {[%clk 00:05:09]} {[%emt 00:00:18]} 29. Qg3 {[%clk
00:03:53]} {[%emt 00:00:07]} Qb6 {[%clk 00:04:56]} {[%emt 00:00:12]} 30. b4
{[%clk 00:03:40]} {[%emt 00:00:14]} Ra8 {[%clk 00:04:51]} {[%emt 00:00:05]} 31.
Qf2 {[%clk 00:03:31]} {[%emt 00:00:09]} Ra3 {[%clk 00:04:39]} {[%emt 00:00:11]}
32. Rf1 {[%clk 00:03:20]} {[%emt 00:00:11]} f6 {[%clk 00:04:36]} {[%emt
00:00:04]} 33. Qf5 {[%clk 00:03:19]} {[%emt 00:00:02]} Qc6 {[%clk 00:04:26]}
{[%emt 00:00:09]} 34. b5 {[%clk 00:02:50]} {[%emt 00:00:29]} Qxb5 {[%clk
00:04:19]} {[%emt 00:00:06]} 35. e4 {[%clk 00:02:46]} {[%emt 00:00:04]} c3
{[%clk 00:03:49]} {[%emt 00:00:31]} 36. exd5 {[%clk 00:02:35]} {[%emt
00:00:11]} Qb6 {[%clk 00:03:25]} {[%emt 00:00:24]} 37. Qc8+ {[%clk 00:01:42]}
{[%emt 00:00:53]} Kf7 {[%clk 00:03:22]} {[%emt 00:00:03]} 38. Qc4 {[%emt
00:00:04]} Qa6 {[%clk 00:03:04]} {[%emt 00:00:16]} 39. Qc7+ {[%clk 00:01:37]}
{[%emt 00:00:03]} Kg6 {[%clk 00:02:41]} {[%emt 00:00:24]} 40. h4 {[%clk
00:01:36]} Qe2 {[%clk 00:02:17]} {[%emt 00:00:23]} 41. h5+ {[%clk 00:01:00]}
{[%emt 00:00:37]} Qxh5 {[%clk 00:02:13]} {[%emt 00:00:03]} 42. Qe7 {[%clk
00:00:54]} {[%emt 00:00:07]} Ra2 {[%clk 00:01:45]} {[%emt 00:00:28]} 43. Qe8+
{[%clk 00:00:51]} {[%emt 00:00:03]} Kh6 {[%clk 00:01:36]} {[%emt 00:00:09]} 44.
Qe3+ {[%clk 00:00:21]} {[%emt 00:00:29]} Qg5 {[%clk 00:01:31]} {[%emt
00:00:06]} 45. Qh3+ {[%clk 00:00:19]} {[%emt 00:00:02]} Kg6 {[%clk 00:01:13]}
{[%emt 00:00:17]} 46. Qd3+ {[%clk 00:00:17]} {[%emt 00:00:02]} Kf7 {[%clk
00:01:05]} {[%emt 00:00:08]} 47. Qe4 {[%clk 00:00:16]} {[%emt 00:00:01]} c2
{[%clk 00:00:45]} {[%emt 00:00:20]} 48. Re1 {[%clk 00:00:15]} {[%emt 00:00:01]}
Ra8 {[%clk 00:00:33]} {[%emt 00:00:13]} 49. Qxc2 {[%clk 00:00:14]} {[%emt
00:00:01]} Qxd5 {[%clk 00:00:29]} {[%emt 00:00:04]} 50. Qd3 {[%clk 00:00:11]}
{[%emt 00:00:02]} Rd8 {[%clk 00:00:29]} 51. Rd1 {[%clk 00:00:10]} {[%emt
00:00:01]} g5 {[%clk 00:00:28]} {[%emt 00:00:02]} 52. Kh2 {[%clk 00:00:07]}
{[%emt 00:00:02]} Kg7 {[%clk 00:00:27]} {[%emt 00:00:01]} 53. Rd2 {[%clk
00:00:06]} {[%emt 00:00:01]} h5 {[%clk 00:00:26]} 54. Qe2 {[%clk 00:00:05]}
{[%emt 00:00:01]} Qd6+ {[%clk 00:00:25]} {[%emt 00:00:02]} 55. Kh1 {[%clk
00:00:04]} {[%emt 00:00:01]} g4 {[%clk 00:00:24]} 56. Qe4 {[%clk 00:00:03]}
{[%emt 00:00:02]} Qd5 {[%clk 00:00:21]} {[%emt 00:00:03]} 57. Qe3 {[%clk
00:00:02]} Qd6 {[%clk 00:00:20]} 58. d5 {[%clk 00:00:01]} {[%emt 00:00:01]} Qd7
{[%clk 00:00:19]} 59. Qe4 {[%clk 00:00:00]} {[%emt 00:00:03]} Re8 {[%clk
00:00:18]} {[%emt 00:00:01]} 60. Qf4 0-1

[Event "Božićni turnir u VaraždinskimToplicama 26.12.2025."]
[Site "Varazdinske Toplice, Croatia"]
[Date "2025.12.26"]
[Round "9.5"]
[White "Hostnjak, Hrvoje"]
[Black "Bozinovic, Bogdan"]
[Result "0-1"]
[TimeControl "10"]
[WhiteFideId "14551470"]
[BlackFideId "14502593"]
[WhiteElo "1704"]
[BlackElo "2129"]

1. e4 {[%clk 00:09:58]} {[%emt 00:00:01]} c5 {[%clk 00:09:59]} {[%emt
00:00:01]} 2. Be2 {[%clk 00:09:57]} {[%emt 00:00:02]} d6 {[%clk 00:09:56]}
{[%emt 00:00:02]} 3. d3 {[%clk 00:09:56]} Nc6 {[%clk 00:09:54]} {[%emt
00:00:03]} 4. c3 {[%clk 00:09:55]} {[%emt 00:00:01]} Nf6 {[%clk 00:09:52]}
{[%emt 00:00:02]} 5. f4 {[%clk 00:09:54]} {[%emt 00:00:01]} c4 {[%clk
00:09:37]} {[%emt 00:00:15]} 6. Nf3 {[%clk 00:09:47]} {[%emt 00:00:06]} cxd3
{[%clk 00:09:35]} {[%emt 00:00:03]} 7. Bxd3 {[%clk 00:09:46]} {[%emt 00:00:01]}
e6 {[%clk 00:09:31]} {[%emt 00:00:05]} 8. h3 {[%clk 00:09:40]} {[%emt
00:00:06]} Be7 {[%clk 00:09:04]} {[%emt 00:00:26]} 9. Be3 {[%clk 00:09:37]}
{[%emt 00:00:03]} O-O {[%clk 00:08:57]} {[%emt 00:00:07]} 10. O-O {[%clk
00:09:34]} {[%emt 00:00:03]} a6 {[%clk 00:08:55]} {[%emt 00:00:03]} 11. Nbd2
{[%clk 00:09:18]} {[%emt 00:00:15]} Qc7 {[%clk 00:08:53]} {[%emt 00:00:03]} 12.
Rc1 {[%clk 00:09:13]} {[%emt 00:00:05]} b5 {[%clk 00:08:49]} {[%emt 00:00:03]}
13. Qc2 {[%clk 00:09:09]} {[%emt 00:00:04]} Bb7 {[%clk 00:08:44]} {[%emt
00:00:05]} 14. g4 {[%clk 00:08:16]} {[%emt 00:00:52]} Rac8 {[%clk 00:08:40]}
{[%emt 00:00:04]} 15. a3 {[%clk 00:07:47]} {[%emt 00:00:30]} Rfe8 {[%clk
00:08:23]} {[%emt 00:00:17]} 16. Rfe1 {[%clk 00:06:55]} {[%emt 00:00:53]} Nd7
{[%clk 00:07:58]} {[%emt 00:00:25]} 17. Nf1 {[%clk 00:06:47]} {[%emt 00:00:08]}
g6 {[%clk 00:07:39]} {[%emt 00:00:18]} 18. Ng3 {[%clk 00:06:26]} {[%emt
00:00:20]} Nb6 {[%clk 00:07:37]} {[%emt 00:00:03]} 19. h4 {[%clk 00:06:07]}
{[%emt 00:00:19]} d5 {[%clk 00:07:12]} {[%emt 00:00:26]} 20. e5 {[%clk
00:05:32]} {[%emt 00:00:35]} Nc4 {[%clk 00:07:05]} {[%emt 00:00:07]} 21. h5
{[%clk 00:05:21]} {[%emt 00:00:11]} Nxe3 {[%clk 00:06:58]} {[%emt 00:00:06]} 22.
Rxe3 {[%clk 00:05:19]} {[%emt 00:00:02]} Bc5 {[%clk 00:06:55]} {[%emt
00:00:03]} 23. Nd4 {[%clk 00:05:06]} {[%emt 00:00:13]} Qb6 {[%clk 00:06:46]}
{[%emt 00:00:09]} 24. hxg6 {[%clk 00:05:04]} {[%emt 00:00:02]} Nxd4 {[%clk
00:06:33]} {[%emt 00:00:13]} 25. gxf7+ {[%clk 00:05:00]} {[%emt 00:00:04]} Kxf7
{[%clk 00:06:32]} {[%emt 00:00:02]} 26. Qh2 {[%clk 00:04:51]} {[%emt 00:00:08]}
Nf3+ {[%clk 00:06:29]} {[%emt 00:00:02]} 0-1

[Event "Božićni turnir u VaraždinskimToplicama 26.12.2025."]
[Site "Varazdinske Toplice, Croatia"]
[Date "2025.12.26"]
[Round "9.7"]
[White "Marcec, Fran"]
[Black "Mitrovic, Boris"]
[Result "1-0"]
[TimeControl "10"]
[WhiteFideId "79313183"]
[BlackFideId "14610655"]
[WhiteElo "1150"]
[BlackElo "1968"]

1. b4 {[%clk 00:09:58]} {[%emt 00:00:02]} Nf6 {[%clk 00:09:58]} {[%emt
00:00:02]} 2. Bb2 {[%clk 00:09:57]} e6 {[%clk 00:09:57]} {[%emt 00:00:01]} 3.
a3 {[%clk 00:09:57]} {[%emt 00:00:02]} d5 {[%clk 00:09:56]} 4. e3 {[%clk
00:09:56]} c5 {[%clk 00:09:54]} {[%emt 00:00:03]} 5. bxc5 {[%clk 00:09:53]}
{[%emt 00:00:03]} Bxc5 {[%clk 00:09:52]} 6. Nf3 {[%clk 00:09:52]} {[%emt
00:00:01]} O-O {[%clk 00:09:51]} {[%emt 00:00:02]} 7. Be2 {[%clk 00:09:50]}
{[%emt 00:00:01]} a6 {[%clk 00:09:49]} {[%emt 00:00:02]} 8. O-O {[%clk
00:09:49]} {[%emt 00:00:02]} b5 {[%clk 00:09:49]} 9. d3 {[%clk 00:09:43]}
{[%emt 00:00:05]} Nc6 {[%clk 00:09:43]} {[%emt 00:00:06]} 10. Nbd2 {[%clk
00:09:42]} {[%emt 00:00:01]} Bd6 {[%clk 00:09:42]} 11. a4 {[%clk 00:09:28]}
{[%emt 00:00:14]} bxa4 {[%clk 00:09:35]} {[%emt 00:00:06]} 12. Rxa4 {[%clk
00:09:26]} {[%emt 00:00:03]} e5 {[%clk 00:09:32]} {[%emt 00:00:03]} 13. e4
{[%clk 00:09:22]} {[%emt 00:00:04]} d4 {[%clk 00:09:30]} {[%emt 00:00:02]} 14.
Nc4 {[%clk 00:09:15]} {[%emt 00:00:07]} Bc7 {[%clk 00:09:26]} {[%emt 00:00:05]}
15. Qa1 {[%clk 00:09:01]} {[%emt 00:00:14]} Re8 {[%clk 00:09:08]} {[%emt
00:00:18]} 16. h3 {[%clk 00:08:50]} {[%emt 00:00:10]} a5 {[%clk 00:09:05]}
{[%emt 00:00:04]} 17. c3 {[%clk 00:08:43]} {[%emt 00:00:07]} Bd7 {[%clk
00:09:02]} {[%emt 00:00:03]} 18. Ra2 {[%clk 00:08:33]} {[%emt 00:00:09]} Be6
{[%clk 00:08:32]} {[%emt 00:00:31]} 19. cxd4 {[%clk 00:08:25]} {[%emt
00:00:07]} Bxc4 {[%clk 00:08:31]} {[%emt 00:00:01]} 20. dxc4 {[%clk 00:08:24]}
{[%emt 00:00:02]} Nxd4 {[%clk 00:08:29]} 21. Nxd4 {[%clk 00:07:28]} {[%emt
00:00:57]} exd4 {[%clk 00:08:27]} {[%emt 00:00:02]} 22. Rd1 {[%clk 00:07:16]}
{[%emt 00:00:12]} Bb6 {[%clk 00:08:15]} {[%emt 00:00:12]} 23. Bxd4 {[%clk
00:06:55]} {[%emt 00:00:21]} Rxe4 {[%clk 00:08:10]} {[%emt 00:00:05]} 24. Bxb6
{[%clk 00:06:48]} {[%emt 00:00:07]} Qxb6 {[%clk 00:08:08]} {[%emt 00:00:03]} 25.
Bf3 {[%clk 00:06:45]} {[%emt 00:00:03]} Qc6 {[%clk 00:07:53]} {[%emt 00:00:15]}
26. Bxe4 {[%clk 00:06:32]} {[%emt 00:00:13]} Nxe4 {[%clk 00:07:43]} {[%emt
00:00:09]} 27. Rxa5 {[%clk 00:06:28]} {[%emt 00:00:04]} Rc8 {[%clk 00:07:40]}
{[%emt 00:00:03]} 28. c5 {[%clk 00:06:10]} {[%emt 00:00:19]} h6 {[%clk
00:07:30]} {[%emt 00:00:10]} 29. Qd4 {[%clk 00:05:55]} {[%emt 00:00:13]} f5
{[%clk 00:07:27]} {[%emt 00:00:04]} 30. Qd5+ {[%clk 00:05:49]} {[%emt
00:00:07]} Kh7 {[%clk 00:07:25]} {[%emt 00:00:01]} 31. Qxf5+ {[%clk 00:05:45]}
{[%emt 00:00:04]} Kh8 {[%clk 00:07:20]} {[%emt 00:00:06]} 32. Qd5 {[%clk
00:05:15]} {[%emt 00:00:29]} Qc7 {[%clk 00:07:06]} {[%emt 00:00:14]} 33. Ra8
{[%clk 00:05:04]} {[%emt 00:00:12]} Nf6 {[%clk 00:07:02]} {[%emt 00:00:03]} 34.
Rxc8+ {[%clk 00:05:02]} {[%emt 00:00:02]} Qxc8 {[%clk 00:07:01]} {[%emt
00:00:01]} 35. Qd8+ {[%clk 00:05:01]} 1-0

[Event "Božićni turnir u VaraždinskimToplicama 26.12.2025."]
[Site "Varazdinske Toplice, Croatia"]
[Date "2025.12.26"]
[Round "9.8"]
[White "Sardi, Darko"]
[Black "Klement, Dubravko"]
[Result "1-0"]
[TimeControl "10"]
[WhiteFideId "14511100"]
[BlackFideId "14515431"]
[WhiteElo "1905"]
[BlackElo "1790"]

1. e4 {[%clk 00:09:58]} {[%emt 00:00:02]} c5 {[%clk 00:09:58]} {[%emt
00:00:02]} 2. c3 {[%clk 00:09:57]} {[%emt 00:00:01]} d5 {[%clk 00:09:58]} 3.
exd5 {[%clk 00:09:55]} {[%emt 00:00:04]} Qxd5 {[%clk 00:09:56]} 4. Nf3 {[%clk
00:09:54]} Nf6 {[%clk 00:09:52]} {[%emt 00:00:04]} 5. Be2 {[%clk 00:09:53]} Bg4
{[%clk 00:09:51]} {[%emt 00:00:01]} 6. O-O {[%clk 00:09:50]} {[%emt 00:00:04]}
e6 {[%clk 00:09:49]} {[%emt 00:00:02]} 7. Na3 {[%clk 00:09:49]} {[%emt
00:00:01]} a6 {[%clk 00:09:18]} {[%emt 00:00:32]} 8. Qa4+ {[%clk 00:09:45]}
{[%emt 00:00:03]} Nc6 {[%clk 00:09:03]} {[%emt 00:00:15]} 9. Nc2 {[%clk
00:09:40]} {[%emt 00:00:05]} Qd7 {[%clk 00:08:48]} {[%emt 00:00:14]} 10. Ne3
{[%clk 00:09:30]} {[%emt 00:00:10]} Bh5 {[%clk 00:08:32]} {[%emt 00:00:16]} 11.
Qd1 {[%clk 00:08:42]} {[%emt 00:00:49]} Be7 {[%clk 00:08:23]} {[%emt 00:00:09]}
12. Nc4 {[%clk 00:08:39]} {[%emt 00:00:03]} Qc7 {[%clk 00:08:11]} {[%emt
00:00:12]} 13. d3 {[%clk 00:08:21]} {[%emt 00:00:18]} O-O {[%clk 00:08:02]}
{[%emt 00:00:09]} 14. Bg5 {[%clk 00:08:15]} {[%emt 00:00:06]} h6 {[%clk
00:07:53]} {[%emt 00:00:09]} 15. Bh4 {[%clk 00:08:13]} {[%emt 00:00:01]} Rad8
{[%clk 00:07:41]} {[%emt 00:00:13]} 16. Bg3 {[%clk 00:08:10]} {[%emt 00:00:03]}
Qd7 {[%clk 00:07:10]} {[%emt 00:00:30]} 17. Qc2 {[%clk 00:08:09]} {[%emt
00:00:02]} b5 {[%clk 00:07:02]} {[%emt 00:00:09]} 18. Nce5 {[%clk 00:08:06]}
{[%emt 00:00:03]} Qb7 {[%clk 00:06:48]} {[%emt 00:00:14]} 19. Rad1 {[%clk
00:07:53]} {[%emt 00:00:12]} Nxe5 {[%clk 00:06:43]} {[%emt 00:00:04]} 20. Nxe5
{[%clk 00:07:41]} {[%emt 00:00:13]} Bxe2 21. Qxe2 {[%clk 00:07:40]} Bd6 {[%clk
00:06:08]} {[%emt 00:00:32]} 22. Rd2 {[%clk 00:07:33]} {[%emt 00:00:08]} Nd7
{[%clk 00:05:46]} {[%emt 00:00:21]} 23. Rfd1 {[%clk 00:07:08]} {[%emt
00:00:25]} Nxe5 {[%clk 00:05:37]} {[%emt 00:00:09]} 24. Bxe5 {[%clk 00:07:06]}
Bxe5 {[%clk 00:05:35]} {[%emt 00:00:02]} 25. Qxe5 {[%clk 00:07:05]} {[%emt
00:00:01]} Rd5 {[%clk 00:05:30]} {[%emt 00:00:06]} 26. Qe4 {[%clk 00:06:58]}
{[%emt 00:00:06]} Qd7 {[%clk 00:05:21]} {[%emt 00:00:10]} 27. h3 {[%clk
00:06:50]} {[%emt 00:00:08]} Rd8 {[%clk 00:05:13]} {[%emt 00:00:08]} 28. a4
{[%clk 00:06:38]} {[%emt 00:00:12]} bxa4 {[%clk 00:05:07]} {[%emt 00:00:05]} 29.
Qc4 {[%clk 00:06:32]} {[%emt 00:00:06]} Qb5 {[%clk 00:05:02]} {[%emt 00:00:06]}
30. Qe4 {[%clk 00:06:28]} {[%emt 00:00:04]} g6 {[%clk 00:04:18]} {[%emt
00:00:44]} 31. c4 {[%clk 00:06:25]} {[%emt 00:00:02]} Rd4 {[%clk 00:04:16]}
{[%emt 00:00:03]} 32. Qxd4 {[%clk 00:06:18]} {[%emt 00:00:06]} Qe8 {[%emt
00:00:08]} 1-0